fUSD/lending_fUSD_20240625
["ID","MTS","AMOUNT","RATE_DAILY","PERIOD"]
[330357166,1719321038571,-29534.052,0.00016775,2]
[330357167,1719321038580,-1082.122,0.00016775,2]
[330357168,1719321038594,-236.74,0.00017131,2]
[330357170,1719321038604,-158.16085186,0.00017183,2]
[330357171,1719321038614,-208.2521774,0.00017185,2]
[330357172,1719321038625,-168.18114171,0.00017185,2]
[330357173,1719321038637,-155.1064808,0.00017185,2]
[330357174,1719321038647,-182.36,0.00017186,2]
[330357175,1719321038657,-250.0,0.00017193,2]
[330357176,1719321038668,-1225.82,0.00017229,2]
[330357177,1719321038679,-2743.13,0.00017239,2]
[330357178,1719321038688,-15237.43927045,0.00017259,2]
[330357179,1719321038698,-10749.50758498,0.0001726,2]
[330357180,1719321038709,-20974.79775801,0.0001726,2]
[330357181,1719321038719,-2373.11184045,0.00017275,2]
[330357182,1719321038728,-388.56,0.00017276,2]
[330357183,1719321038737,-500.0,0.00017283,2]
[330357184,1719321038747,-162.97,0.00017284,2]
[330357185,1719321038757,-2491.58422844,0.00017284,2]
[330357186,1719321038766,-1000.0,0.00017285,2]
[330357187,1719321038776,-1235.09,0.00017376,2]
[330357188,1719321038785,-23900.0,0.00017378,2]
[330357189,1719321038795,-520.06850352,0.00017569,2]
[330357190,1719321038805,-507.49,0.0001757,2]
[330357191,1719321038816,-162.97,0.00017734,2]
[330357192,1719321038825,-162.97,0.00018184,2]
[330357193,1719321038835,-158.16085186,0.00018324,2]
[330357194,1719321038844,-150.0,0.00018877,2]
[330357195,1719321038854,-150.0,0.00018877,2]
[330357196,1719321038863,-150.0,0.00018877,2]
[330357197,1719321038873,-150.0,0.00018877,2]
[330357198,1719321038882,-150.0,0.00018877,2]
[330357199,1719321038892,-150.0,0.00018877,2]
[330357200,1719321038901,-150.0,0.00018877,2]
[330357201,1719321038911,-423.79,0.00018877,2]
[330357202,1719321038921,-527.79,0.00018877,2]
[330357203,1719321038931,-354.39,0.00018877,2]
[330357204,1719321038940,-155.67,0.00018877,2]
[330357205,1719321038950,-164.65,0.00018877,2]
[330357206,1719321038960,-423.79,0.00018877,2]
[330357207,1719321038969,-150.0,0.00018877,2]
[330357208,1719321038979,-527.79,0.00018877,2]
[330357209,1719321038988,-150.0,0.00018877,2]
[330357210,1719321038997,-150.0,0.00018877,2]
[330357211,1719321039007,-150.0,0.00018877,2]
[330357212,1719321039016,-354.39,0.00018877,2]
[330357213,1719321039026,-150.0,0.00018877,2]
[330357214,1719321039036,-164.65,0.00018877,2]
[330357215,1719321039046,-150.0,0.00018877,2]
[330357216,1719321039056,-423.79,0.00018877,2]
[330357217,1719321039074,-150.0,0.00018877,2]
[330357218,1719321039084,-164.65,0.00018877,2]
[330357219,1719321039098,-150.0,0.00018877,2]
[330357220,1719321039109,-354.39,0.00018877,2]
[330357221,1719321039119,-150.0,0.00018877,2]
[330357222,1719321039130,-150.0,0.00018877,2]
[330357223,1719321039140,-150.0,0.00018877,2]
[330357224,1719321039150,-150.0,0.00018877,2]
[330357225,1719321039164,-527.79,0.00018877,2]
[330357226,1719321039174,-150.0,0.000189,2]
[330357227,1719321039185,-250.0,0.00019178,2]
[330357228,1719321039195,-1000.0,0.00019446,2]
[330357229,1719321039208,-250.0,0.00019448,2]
[330357230,1719321039218,-158.16085186,0.00019466,2]
[330357231,1719321039240,-625.2,0.00019698,2]
[330357232,1719321039251,-527.79,0.00019699,2]
[330357233,1719321039261,-150.0,0.00019699,2]
[330357234,1719321039272,-150.0,0.00019699,2]
[330357235,1719321039282,-150.0,0.00019699,2]
[330357236,1719321039293,-150.0,0.00019699,2]
[330357237,1719321039303,-150.0,0.00019699,2]
[330357238,1719321039319,-150.0,0.00019699,2]
[330357239,1719321039330,-354.39,0.00019699,2]
[330357240,1719321039340,-164.65,0.00019699,2]
[330357241,1719321039350,-423.79,0.00019699,2]
[330357242,1719321039360,-150.0,0.00019699,2]
[330357243,1719321039370,-527.79,0.00019699,2]
[330357244,1719321039380,-423.79,0.00019699,2]
[330357245,1719321039391,-150.0,0.00019699,2]
[330357246,1719321039403,-150.0,0.00019699,2]
[330357247,1719321039414,-164.65,0.00019699,2]
[330357248,1719321039424,-150.0,0.00019699,2]
[330357249,1719321039435,-354.39,0.00019699,2]
[330357250,1719321039445,-300.0,0.00019699,2]
[330357251,1719321039456,-423.79,0.00019699,2]
[330357252,1719321039467,-300.0,0.00019699,2]
[330357253,1719321039477,-300.0,0.00019699,2]
[330357254,1719321039487,-354.39,0.00019699,2]
[330357255,1719321039498,-164.65,0.00019699,2]
[330357256,1719321039508,-527.79,0.00019699,2]
[330357257,1719321039518,-164.65,0.00019699,2]
[330357258,1719321039528,-150.0,0.00019699,2]
[330357259,1719321039538,-527.79,0.00019699,2]
[330357260,1719321039547,-423.79,0.00019699,2]
[330357261,1719321039557,-150.0,0.00019699,2]
[330357262,1719321039570,-527.79,0.00019699,2]
[330357263,1719321039580,-164.65,0.00019699,2]
[330357264,1719321039590,-423.79,0.00019699,2]
[330357265,1719321039600,-527.79,0.00019699,2]
[330357266,1719321039610,-164.2,0.00019699,2]
[330357267,1719321039620,-423.79,0.00019699,2]
[330357268,1719321039632,-150.0,0.00019699,2]
[330357269,1719321039641,-527.79,0.00019699,2]
[330357270,1719321039651,-422.59,0.00019699,2]
[330357271,1719321039662,-526.2,0.00019699,2]
[330357272,1719321039673,-2002.52367702,0.00019833,2]
[330357273,1719321039684,-507.49,0.00019834,2]
[330357274,1719321039694,-492.75515407,0.00019846,2]
[330357275,1719321039704,-260.6803798,0.00019846,2]
[330357276,1719321039716,-202.05047868,0.00019847,2]
[330357277,1719321039726,-155.09550556,0.00019856,2]
[330357278,1719321039736,-155.0,0.00019857,2]
[330357279,1719321039747,-650.69302056,0.00019877,2]
[330357280,1719321039756,-150.0,0.00019879,2]
[330357281,1719321039767,-155.0,0.00019883,2]
[330357282,1719321039776,-350.0,0.00019996,2]
[330357283,1719321039786,-500.0,0.00019999,2]
[330357284,1719321039795,-339.04058475,0.0002,7]
[330357285,1719321039805,-461.29191155,0.0002,2]
[330357286,1719321039818,-476.08334963,0.0002,2]
[330357287,1719321039828,-1034.85885,0.0002,2]
[330357288,1719321039838,-237.60038772,0.0002,2]
[330357289,1719321039853,-237.60038772,0.0002,2]
[330357290,1719321039864,-237.60038772,0.0002,2]
[330357291,1719321039875,-237.60038772,0.0002,2]
[330357292,1719321039885,-237.60038772,0.0002,2]
[330357293,1719321039895,-237.60038772,0.0002,2]
[330357294,1719321039906,-237.60038772,0.0002,2]
[330357295,1719321039917,-237.60038772,0.0002,2]
[330357296,1719321039927,-237.60038772,0.0002,2]
[330357297,1719321039937,-237.60038772,0.0002,2]
[330357298,1719321039948,-237.60038772,0.0002,2]
[330357299,1719321039963,-237.60038772,0.0002,2]
[330357300,1719321039974,-237.60038772,0.0002,2]
[330357301,1719321039986,-237.60038772,0.0002,2]
[330357302,1719321039996,-237.60038772,0.0002,2]
[330357303,1719321040007,-237.60038772,0.0002,2]
[330357304,1719321040017,-237.60038772,0.0002,2]
[330357305,1719321040027,-237.60038772,0.0002,2]
[330357306,1719321040036,-237.60038772,0.0002,2]
[330357307,1719321040048,-237.60038772,0.0002,2]
[330357308,1719321040061,-237.60038772,0.0002,2]
[330357309,1719321040072,-237.60038772,0.0002,2]
[330357310,1719321040082,-237.60038772,0.0002,2]
[330357311,1719321040091,-237.60038772,0.0002,2]
[330357312,1719321040101,-237.60038772,0.0002,2]
[330357313,1719321040111,-237.60038772,0.0002,2]
[330357314,1719321040122,-237.60038772,0.0002,2]
[330357315,1719321040132,-237.60038772,0.0002,2]
[330357316,1719321040141,-237.60038772,0.0002,2]
[330357317,1719321040151,-237.60038772,0.0002,2]
[330357318,1719321040162,-237.60038772,0.0002,2]
[330357319,1719321040173,-237.60038772,0.0002,2]
[330357320,1719321040183,-237.60038772,0.0002,2]
[330357321,1719321040193,-237.60038772,0.0002,2]
[330357322,1719321040203,-237.60038772,0.0002,2]
[330357323,1719321040213,-237.60038772,0.0002,2]
[330357324,1719321040223,-237.60038772,0.0002,2]
[330357325,1719321040234,-237.60038772,0.0002,2]
[330357326,1719321040244,-237.60038772,0.0002,2]
[330357327,1719321040254,-237.60038772,0.0002,2]
[330357328,1719321040265,-215.0,0.000202,2]
[330357329,1719321040275,-86836.00395107,0.000203,2]
[330357330,1719321041036,-237.60038772,0.0002,2]
[330357331,1719321041046,-237.60038772,0.0002,2]
[330357332,1719321041056,-237.60038772,0.0002,2]
[330357333,1719321041067,-237.60038772,0.0002,2]
[330357334,1719321041077,-237.60038772,0.0002,2]
[330357335,1719321041087,-237.60038772,0.0002,2]
[330357336,1719321041097,-237.60038772,0.0002,2]
[330357337,1719321041107,-256.20507122,0.000203,2]
[330357338,1719321041119,-533.14275939,0.000203,2]
[330357339,1719321041130,-22474.07632452,0.000203,2]
[330357340,1719321041140,-1157.7,0.000204,2]
[330357341,1719321041150,-187.82975388,0.00020427,2]
[330357342,1719321041162,-1113.17408547,0.00020482,2]
[330357343,1719321041172,-354.39,0.00020521,2]
[330357344,1719321041182,-354.39,0.00020521,2]
[330357345,1719321041194,-353.49,0.00020521,2]
[330357346,1719321041204,-274.84881457,0.00020544,2]
[330357347,1719321041214,-151.0,0.00020607,2]
[330357348,1719321041225,-158.16085186,0.00020607,2]
[330357349,1719321041235,-151.29874118,0.00020666,2]
[330357350,1719321041246,-175.25547106,0.000207,2]
[330357351,1719321041255,-500.0,0.00020709,2]
[330357352,1719321041266,-500.0,0.0002071,2]
[330357353,1719321041275,-500.0,0.0002071,2]
[330357354,1719321041285,-200.0,0.0002071,2]
[330357355,1719321041295,-1486.19306953,0.00020776,2]
[330357356,1719321041305,-157.72862368,0.00020794,2]
[330357357,1719321041315,-171.39309846,0.00020799,2]
[330357358,1719321041325,-709.0,0.000208,2]
[330357359,1719321041336,-490.0,0.000208,3]
[330357360,1719321041345,-2412.0,0.000208,2]
[330357361,1719321041357,-9988.82816258,0.000208,2]
[330357362,1719321041370,-10575.17183742,0.000208,2]
[330357363,1719321041379,-150.0,0.000208,2]
[330357364,1719321041389,-154.47312916,0.000208,2]
[330357365,1719321041398,-308.77508044,0.000208,2]
[330357366,1719321041410,-8708.97670485,0.000208,2]
[330357367,1719321041430,-441.72500004,0.000208,2]
[330357368,1719321041442,-1075.18,0.000208,2]
[330357369,1719321041828,-237.60038772,0.0002,2]
[330357370,1719321041838,-198.46579538,0.000208,2]
[330357371,1719321041854,-746.54000001,0.000208,2]
[330357372,1719321041873,-745.83403878,0.000208,2]
[330357373,1719321041884,-475.2125,0.000208,2]
[330357389,1719321043953,-2494.6800799,0.00017563,2]
[330357390,1719321043962,-237.60038772,0.0002,2]
[330357391,1719321043972,-237.60038772,0.0002,2]
[330357392,1719321043981,-237.60038772,0.0002,2]
[330357393,1719321043990,-237.60038772,0.0002,2]
[330357394,1719321043999,-74.9745471,0.0002,2]
[330357395,1719321044011,-162.62584062,0.0002,2]
[330357396,1719321044020,-237.60038772,0.0002,2]
[330357397,1719321044029,-237.60038772,0.0002,2]
[330357398,1719321044039,-237.60038772,0.0002,2]
[330357399,1719321044049,-237.60038772,0.0002,2]
[330357400,1719321044058,-237.60038772,0.0002,2]
[330357401,1719321044067,-237.60038772,0.0002,2]
[330357402,1719321044077,-237.60038772,0.0002,2]
[330357403,1719321044086,-237.60038772,0.0002,2]
[330357404,1719321044095,-237.60038772,0.0002,2]
[330357405,1719321044104,-1542.29949038,0.000208,2]
[330357419,1719321046090,-2494.6800799,0.00018451,2]
[330357421,1719321046100,-237.60038772,0.0002,2]
[330357423,1719321046109,-237.60038772,0.0002,2]
[330357425,1719321046118,-237.60038772,0.0002,2]
[330357427,1719321046127,-237.60038772,0.0002,2]
[330357429,1719321046137,-237.60038772,0.0002,2]
[330357431,1719321046146,-237.60038772,0.0002,2]
[330357433,1719321046156,-237.60038772,0.0002,2]
[330357435,1719321046168,-237.60038772,0.0002,2]
[330357437,1719321046177,-237.60038772,0.0002,2]
[330357438,1719321046187,-237.60038772,0.0002,2]
[330357440,1719321046196,-306.83361,0.000208,2]
[330357446,1719321046345,-380.43528124,0.000208,2]
[330357447,1719321046357,-505.14,0.000208,2]
[330357448,1719321046368,-292.064,0.000208,2]
[330357449,1719321046380,-2131.06161216,0.000208,2]
[330357450,1719321046392,-2532.01049383,0.000208,2]
[330357451,1719321046403,-856.20926424,0.000208,2]
[330357452,1719321046415,-398.97362754,0.000208,2]
[330357453,1719321046425,-14829.56129089,0.000208,3]
[330357454,1719321046436,-518.90570714,0.000208,3]
[330357455,1719321046448,-1900.41,0.000208,3]
[330357456,1719321046463,-255.637,0.000208,3]
[330357457,1719321046475,-596.048217,0.000208,3]
[330357458,1719321046486,-755.47013296,0.000208,3]
[330357459,1719321046498,-8648.62313302,0.000208,3]
[330357460,1719321046510,-136359.18064799,0.000208,3]
[330357461,1719321046519,-224.17402182,0.000208,2]
[330357462,1719321046528,-300.0,0.00020866,2]
[330357463,1719321046537,-209.45341844,0.00020876,2]
[330357464,1719321046547,-5910.04510539,0.00020876,2]
[330357465,1719321046557,-1626.52482108,0.000209,3]
[330357467,1719321046590,-237.60038772,0.0002,2]
[330357468,1719321046599,-260.80872093,0.000209,3]
[330357469,1719321046611,-390.2895,0.000209,3]
[330357470,1719321046623,-1499.90008,0.000209,3]
[330357471,1719321046638,-493.09011844,0.000209,3]
[330357472,1719321046650,-2124.55561689,0.000209,3]
[330357473,1719321046661,-2424.5200943,0.000209,3]
[330357474,1719321046675,-3969.42191004,0.000209,3]
[330357475,1719321046694,-17542.70841109,0.000209,3]
[330357476,1719321046709,-1096.30158074,0.000209,3]
[330357477,1719321046723,-769.02819339,0.000209,3]
[330357478,1719321046743,-710.33,0.000209,3]
[330357479,1719321046754,-3694.55916163,0.000209,3]
[330357480,1719321046764,-2152.65565936,0.000209,3]
[330357482,1719321080459,1137.38628617,0.00025999,120]
[330357484,1719321195140,1000.0,0.00025998,120]
[330357486,1719321462015,312.74943097,0.00026,120]
[330357503,1719322232303,-202.05047868,0.00011,2]
[330357504,1719322232312,-4482.874,0.000148,2]
[330357505,1719322232322,-1088.6681,0.000149,2]
[330357506,1719322232332,-37.53511112,0.00017316,2]
[330357507,1719322232344,-448.12488888,0.00017316,2]
[330357508,1719322232353,-552.62070963,0.00017663,2]
[330357509,1719322232363,-166.0,0.00017763,2]
[330357510,1719322232372,-162.53842922,0.00017763,2]
[330357511,1719322232384,-279.46157078,0.00017763,2]
[330357512,1719322232394,-585.85460051,0.00017763,2]
[330357513,1719322232406,-31.14539949,0.00017763,2]
[330357514,1719322232682,-812.0,0.00017763,2]
[330357515,1719322232691,-448.0,0.00017763,2]
[330357516,1719322232701,-1898.20460051,0.00017763,2]
[330357517,1719322232945,-397.82076205,0.00017763,2]
[330357518,1719322232957,-111.97463744,0.00017763,2]
[330357519,1719322232966,-1303.0,0.00017763,2]
[330357520,1719322232976,-472.658111,0.00017763,2]
[330357521,1719322232987,-270.26587227,0.00017763,2]
[330357522,1719322233071,-2453.07601673,0.00017763,2]
[330357523,1719322233081,-546.92398327,0.00017763,2]
[330357524,1719322233095,-0.07601673,0.00017763,2]
[330357525,1719322233105,-279.17277815,0.00017763,2]
[330357526,1719322233140,-271.05628702,0.00017763,2]
[330357527,1719322238345,-1433.77093483,0.00017763,2]
[330357528,1719322238355,-1068.0,0.00017763,2]
[330357529,1719322238366,-1196.0,0.00017763,2]
[330357530,1719322238376,-1905.85056517,0.00017763,2]
[330357531,1719322238467,-835.49395484,0.00017763,2]
[330357532,1719322238480,-955.27057878,0.00017763,2]
[330357533,1719322238492,-328.92787868,0.00017763,2]
[330357534,1719322238504,-275.96458678,0.00017763,2]
[330357535,1719322238515,-255.06953445,0.00017763,2]
[330357536,1719322238527,-1023.39,0.00017763,2]
[330357537,1719322238539,-844.70093002,0.00017763,2]
[330357538,1719322238592,-1235.47644,0.00017763,2]
[330357539,1719322238605,-350.15917573,0.00017763,2]
[330357540,1719322238617,-544.57763909,0.00017763,2]
[330357541,1719322238725,-5089.65075638,0.00017763,2]
[330357563,1719322240477,-11247.31413264,0.00017763,2]
[330357564,1719322240490,-2013.124334,0.00017763,2]
[330357565,1719322240502,-11254.02949344,0.00017763,2]
[330357566,1719322240513,-359.0,0.00017763,2]
[330357567,1719322240522,-1830.0,0.00017763,2]
[330357568,1719322240532,-5167.0,0.00017763,2]
[330357569,1719322240542,-1655.0,0.00017763,2]
[330357570,1719322240553,-1312.48,0.00017763,2]
[330357571,1719322240564,-291.0,0.00017763,2]
[330357572,1719322240574,-1272.0,0.00017763,2]
[330357573,1719322240585,-150.0,0.00018981,2]
[330357574,1719322240595,-159.78,0.00018999,2]
[330357575,1719322240606,-162.74,0.00018999,2]
[330357576,1719322240616,-308.03,0.00019125,2]
[330357577,1719322240626,-499.99,0.00019125,2]
[330357578,1719322240636,-250.0,0.00019144,2]
[330357579,1719322240647,-250.0,0.00019178,2]
[330357580,1719322240657,-23900.0,0.00019215,2]
[330357581,1719322240668,-250.0,0.000193,2]
[330357582,1719322240678,-150.99,0.0001945,2]
[330357583,1719322240688,-485.66,0.0001958,2]
[330357584,1719322240699,-1000.0,0.00019664,2]
[330357585,1719322240709,-1638.36,0.00019892,2]
[330357586,1719322240719,-500.0,0.00019999,2]
[330357587,1719322240729,-150.0,0.00020521,2]
[330357588,1719322240742,-150.0,0.00020521,2]
[330357589,1719322241039,-150.0,0.00020521,2]
[330357590,1719322241050,-150.0,0.00020521,2]
[330357591,1719322241060,-374.16,0.00020521,2]
[330357592,1719322241071,-150.0,0.00020521,2]
[330357593,1719322241080,-150.0,0.00020521,2]
[330357594,1719322241089,-150.0,0.00020521,2]
[330357595,1719322241099,-150.0,0.00020521,2]
[330357596,1719322241109,-150.0,0.00020521,2]
[330357597,1719322241120,-158.48,0.00020521,2]
[330357598,1719322241130,-150.0,0.00020521,2]
[330357599,1719322241139,-500.0,0.0002071,2]
[330357600,1719322241148,-200.0,0.0002071,2]
[330357601,1719322241157,-1247.34003995,0.00020766,2]
[330357602,1719322241168,-345.18093938,0.0002079,2]
[330357603,1719322241178,-490.0,0.000208,3]
[330357604,1719322241188,-4956.65017275,0.00020805,3]
[330357605,1719322241199,-133764.55579589,0.00020815,2]
[330357606,1719322241951,-820.68169376,0.00020815,2]
[330357607,1719322241963,-861.2,0.00020815,2]
[330357608,1719322241975,-2962.28790873,0.00020815,2]
[330357609,1719322241987,-1278.99496668,0.00020815,2]
[330357610,1719322242049,-9210.76,0.00020815,2]
[330357611,1719322242060,-35572.17378315,0.00020815,2]
[330357612,1719322242072,-1730.84596,0.00020815,2]
[330357613,1719322242084,-856.3226094,0.00020815,2]
[330357614,1719322242120,-698.50638546,0.00020815,2]
[330357637,1719322243496,-327.12129972,0.00017763,2]
[330357638,1719322243508,-485.85127002,0.00017763,2]
[330357639,1719322243520,-312.14909766,0.00017763,2]
[330357640,1719322243544,-535.8783326,0.00017763,2]
[330357641,1719322243555,-2196.57,0.00020248,2]
[330357642,1719322243564,-1634.34605941,0.00020815,2]
[330357643,1719322243657,-22224.08937347,0.00020815,2]
[330357644,1719322243670,-993.12736041,0.00020815,2]
[330357645,1719322243683,-1520.23070364,0.00020815,2]
[330357646,1719322243692,-1652.21672425,0.00020866,3]
[330357647,1719322243702,-209.45341844,0.00020876,2]
[330357648,1719322243711,-5912.01004503,0.00020876,2]
[330357649,1719322243721,-689.9059,0.00020876,2]
[330357650,1719322243730,-10929.1625011,0.00020891,2]
[330357651,1719322243740,-16686.359114,0.00020891,2]
[330357652,1719322243751,-24818.33254271,0.00020891,2]
[330357653,1719322243761,-687.85090234,0.00020891,2]
[330357698,1719322246377,-981.42113805,0.00020891,2]
[330357699,1719322246389,-77370.709163,0.00020891,2]
[330357700,1719322246399,-4956.65017275,0.00020891,3]
[330357701,1719322246408,-638.66961267,0.00020901,2]
[330357702,1719322246587,-626.86484445,0.00020901,2]
[330357703,1719322246599,-5176.68941238,0.00020901,2]
[330357704,1719322246609,-8683.6085314,0.00020901,2]
[330357705,1719322246618,-33044.334485,0.00020905,3]
[330357706,1719322246628,-3304.4334485,0.0002099,3]
[330357707,1719322246638,-2876.86338039,0.00021,4]
[330357708,1719322246647,-998.12818118,0.00021,3]
[330357709,1719322246656,-766.34393018,0.00021,4]
[330357710,1719322246666,-980.0,0.00021,3]
[330357711,1719322246675,-1664.15860914,0.00021,2]
[330357712,1719322246684,-202.623157,0.00021,2]
[330357713,1719322246694,-1250.0,0.00021,2]
[330357714,1719322246703,-1247.34003995,0.00021002,2]
[330357715,1719322246712,-318.23,0.00021068,2]
[330357716,1719322246722,-500.0,0.00021095,2]
[330357717,1719322246732,-151.0,0.00021203,2]
[330357718,1719322246741,-1247.34003995,0.00021238,2]
[330357719,1719322246750,-1326.03,0.000213,4]
[330357720,1719322246760,-206.0,0.0002131,2]
[330357721,1719322246770,-300.0,0.00021342,2]
[330357722,1719322246779,-423.79,0.00021342,2]
[330357723,1719322246788,-354.39,0.00021342,2]
[330357724,1719322246798,-150.0,0.00021342,2]
[330357725,1719322246809,-164.65,0.00021342,2]
[330357726,1719322246819,-527.79,0.00021342,2]
[330357727,1719322246828,-150.0,0.00021342,2]
[330357728,1719322246838,-150.0,0.00021342,2]
[330357729,1719322246847,-527.79,0.00021342,2]
[330357730,1719322246857,-423.79,0.00021342,2]
[330357731,1719322246866,-150.0,0.00021342,2]
[330357732,1719322246875,-150.0,0.00021342,2]
[330357733,1719322246885,-354.39,0.00021342,2]
[330357734,1719322246894,-164.65,0.00021342,2]
[330357735,1719322246903,-150.0,0.00021342,2]
[330357736,1719322246912,-527.79,0.00021342,2]
[330357737,1719322246921,-423.79,0.00021342,2]
[330357738,1719322246931,-150.0,0.00021342,2]
[330357739,1719322246940,-164.65,0.00021342,2]
[330357740,1719322246949,-150.0,0.00021342,2]
[330357741,1719322246958,-354.39,0.00021342,2]
[330357742,1719322246967,-150.0,0.00021342,2]
[330357743,1719322246980,-527.79,0.00021342,2]
[330357744,1719322246989,-150.0,0.00021342,2]
[330357745,1719322246998,-423.79,0.00021342,2]
[330357746,1719322247011,-150.0,0.00021342,2]
[330357747,1719322247021,-164.65,0.00021342,2]
[330357748,1719322247035,-354.39,0.00021342,2]
[330357749,1719322247044,-422.54,0.00021342,2]
[330357750,1719322247055,-526.34,0.00021342,2]
[330357751,1719322247064,-150.0,0.00021342,2]
[330357752,1719322247075,-164.4,0.00021342,2]
[330357753,1719322247084,-353.89,0.00021342,2]
[330357754,1719322247097,-10025.53014099,0.000214,2]
[330357755,1719322247109,-172.28575094,0.000214,2]
[330357756,1719322247119,-171.25042833,0.000214,2]
[330357757,1719322247128,-1362.34364706,0.000214,2]
[330357758,1719322247137,-1247.34003995,0.00021474,2]
[330357759,1719322247147,-24692.16490166,0.00021499,2]
[330357760,1719322247156,-691.0,0.000215,2]
[330357761,1719322247166,-141653.21307887,0.000215,4]
[330357762,1719322247178,-1065.18041574,0.000215,4]
[330357763,1719322247190,-28945.8048,0.000215,4]
[330357764,1719322247250,-589.79769736,0.000215,4]
[330357765,1719322247262,-5322.71050462,0.000215,4]
[330357766,1719322247274,-424.18779121,0.000215,4]
[330357767,1719322247735,-442.12267575,0.000215,4]
[330357768,1719322294305,264.2801,0.00010901,2]
[330357769,1719322396249,1000.0,0.00025999,120]
[330357781,1719322995407,209.24,0.00026,120]
[330357800,1719323433464,-253.12656111,0.0001241,2]
[330357801,1719323433475,-89.31343889,0.0001251,2]
[330357802,1719323433488,-1641.30283098,0.0001251,2]
[330357803,1719323433499,-197.46491076,0.00013715,2]
[330357804,1719323433510,-847.8946,0.00013815,2]
[330357805,1719323433520,-150.0,0.00013863,2]
[330357806,1719323433529,-743.87923053,0.00013863,2]
[330357807,1719323433539,-4418.90369291,0.000139,2]
[330357808,1719323433591,-11182.61490709,0.000139,2]
[330357809,1719323433600,-83.52637744,0.000139,2]
[330357810,1719323433613,-87.72405089,0.000139,2]
[330357811,1719323433623,-600.0,0.000139,5]
[330357812,1719323433633,-152.7992684,0.000139,2]
[330357813,1719323433646,-478.1956183,0.000139,2]
[330357814,1719323433659,-117.40913727,0.000139,2]
[330357815,1719323433670,-217.52694507,0.000139,2]
[330357816,1719323433680,-858.0007829,0.000139,2]
[330357817,1719323433690,-165.08264122,0.00013999,2]
[330357818,1719323433701,-37594.80086602,0.00014,2]
[330357828,1719323433816,-4943.60604866,0.00014,2]
[330357831,1719323433828,-2285.28828624,0.00014,2]
[330357833,1719323433840,-530.14499983,0.00014,2]
[330357834,1719323433853,-3921.29546248,0.00014,2]
[330357849,1719323438530,-27934.69304211,0.00014,2]
[330357850,1719323438543,-393.19965,0.00014,2]
[330357851,1719323438704,-468.50164004,0.00014,2]
[330357852,1719323438716,-51070.21787458,0.00014,2]
[330357853,1719323438731,-367.18970664,0.00014,2]
[330357854,1719323438747,-26978.85337479,0.00014,2]
[330357855,1719323438760,-6670.00918374,0.00014,2]
[330357856,1719323438773,-1115.92565592,0.00014,2]
[330357857,1719323438785,-260.76677281,0.00014,2]
[330357858,1719323438798,-2473.81855127,0.00014,2]
[330357859,1719323438937,-319.8,0.00014,2]
[330357860,1719323438950,-994.53623725,0.00014,2]
[330357861,1719323438962,-4945.53376372,0.00014,2]
[330357862,1719323438975,-202885.75282635,0.00014,2]
[330357863,1719323438989,-19015.05604484,0.00014,2]
[330357864,1719323439003,-1093.39984685,0.00014,2]
[330357865,1719323439017,-479.24999973,0.00014,2]
[330357866,1719323439033,-369.90456315,0.00014,2]
[330357867,1719323439046,-7563.25408996,0.00014,2]
[330357868,1719323439059,-4093.73668848,0.00014,2]
[330357869,1719323439073,-10978.45424228,0.00014,2]
[330357873,1719323440662,-671.80019193,0.00014,2]
[330357876,1719323440676,-25510.89142773,0.00014,2]